bitfinex-derivatives/quotes_ETHF0:USTF0_20250816
["timestamp","ask_amount","ask_price","bid_price","bid_amount"]
[1755324018335,0.4212,4425.0,4424.9,4.523644]
[1755324018536,0.8012,4425.0,4424.9,4.523644]
[1755324019338,1.0806,4425.1,4425.0,1.3619]
[1755324019540,1.0806,4425.1,4425.0,1.5389]
[1755324020135,0.8151,4425.1,4425.0,1.5389]
[1755324020334,0.8151,4425.1,4425.0,4.583344]
[1755324020935,0.2654,4425.1,4425.0,4.583344]
[1755324021433,0.96526616,4425.1,4425.0,4.583344]
[1755324021634,1.23076616,4425.1,4425.0,4.583344]
[1755324022333,0.15016613,4425.1,4425.0,4.583344]
[1755324022937,0.1697,4425.1,4425.0,4.583344]
[1755324023132,0.1,4425.2,4425.0,4.583344]
[1755324023334,0.1,4425.2,4425.1,1.5389]
[1755324024229,0.9151,4425.2,4425.0,3.044444]
[1755324024435,2.97594266,4425.2,4425.1,0.8829]
[1755324024639,0.1,4425.2,4425.1,1.5389]
[1755324026240,0.1,4425.2,4425.1,4.7467]
[1755324026941,0.1,4425.2,4425.1,1.5389]
[1755324027143,1.5189,4425.2,4425.1,1.5389]
[1755324028742,1.1806,4425.2,4425.1,1.5389]
[1755324029335,1.3312487,4425.2,4425.1,1.5389]
[1755324029541,0.6857487,4425.2,4425.1,4.7467]
[1755324029746,0.2506487,4425.2,4425.1,4.7467]
[1755324029948,0.1,4425.2,4425.1,4.7467]
[1755324031147,3.5878,4426.1,4425.1,7.27699]
[1755324031450,0.15063268,4426.0,4425.9,1.5389]
[1755324032359,1.23123268,4426.0,4425.9,1.5389]
[1755324033652,1.23113683,4426.0,4425.9,1.5389]
[1755324033854,2.04267949,4426.0,4425.3,0.2646]
[1755324034164,1.0806,4425.5,4425.4,1.5389]
[1755324035261,1.0806,4425.5,4425.4,4.583344]
[1755324036060,1.0806,4425.5,4425.4,25.355344]
[1755324036358,1.3308,4425.9,4425.8,0.6176]
[1755324036550,1.3308,4425.9,4425.8,1.5389]
[1755324036954,0.4351,4425.9,4425.8,1.5389]
[1755324037150,4.2957,4426.6,4426.5,0.1772]
[1755324037354,4.86604703,4426.6,4426.5,0.6183]
[1755324038355,0.6121,4426.2,4426.1,0.6188]
[1755324038557,0.76254703,4426.2,4425.6,3.2078]
[1755324038757,1.5078,4425.9,4425.8,0.6188]
[1755324038963,1.5078,4425.9,4425.8,1.2755]
[1755324039265,1.5078,4425.9,4425.8,1.5389]
[1755324039556,0.6121,4425.7,4425.6,3.3848]
[1755324039750,0.6121,4425.7,4425.4,3.701644]
[1755324039751,0.8623,4425.7,4425.4,3.573144]
[1755324039958,1.2423,4425.5,4425.4,3.927344]
[1755324040162,1.5078,4425.5,4425.4,3.927344]
[1755324040559,1.5078,4425.5,4425.4,4.319944]
[1755324040858,1.5078,4425.5,4425.4,3.044444]
[1755324041164,3.2078,4426.0,4425.4,3.044444]
[1755324041465,1.65819137,4425.9,4425.8,1.5389]
[1755324042160,1.65819229,4425.9,4425.8,1.5389]
[1755324044660,0.6121,4425.5,4425.4,3.044444]
[1755324044861,3.11523495,4425.5,4425.4,3.044444]
[1755324046060,3.11523495,4425.5,4425.4,2.246644]
[1755324046260,6.94506869,4425.5,4425.4,2.004244]
[1755324049268,0.76259229,4425.5,4425.4,3.465244]
[1755324049467,1.00249229,4425.5,4425.4,3.465244]
[1755324049662,0.32009229,4425.5,4425.4,3.465244]
[1755324049865,0.15039229,4425.5,4425.4,3.465244]
[1755324050064,0.2476,4425.8,4425.4,2.590944]
[1755324050365,0.15135071,4425.7,4425.6,1.461]
[1755324051862,1.70464266,4426.3,4425.7,0.8743]
[1755324052171,2.28114266,4426.3,4426.2,1.461]
[1755324052372,2.43252482,4426.3,4426.2,1.461]
[1755324052773,0.73558216,4426.3,4426.2,1.461]
[1755324053065,0.4141,4427.1,4427.0,0.5867]
[1755324053270,0.4141,4427.1,4427.0,1.461]
[1755324054462,0.1665,4427.1,4427.0,1.461]
[1755324054666,0.5654,4427.1,4427.0,1.461]
[1755324054866,0.7355,4427.1,4427.0,1.461]
[1755324055072,0.9754,4427.1,4427.0,1.461]
[1755324055274,0.3366,4427.1,4427.0,3.465244]
[1755324055973,0.1665,4427.1,4427.0,3.465244]
[1755324056170,0.3912,4427.4,4427.0,3.465244]
[1755324056377,2.09584266,4427.4,4427.1,0.8743]
[1755324056677,2.67464266,4427.4,4427.3,1.461]
[1755324057974,1.67464266,4427.4,4427.3,1.461]
[1755324060172,1.69614266,4427.4,4427.3,1.2114]
[1755324060376,0.47,4427.1,4427.0,2.004244]
[1755324060573,0.1665,4426.2,4426.1,1.2114]
[1755324060779,1.92704266,4426.2,4426.1,1.2114]
[1755324060975,1.92704266,4426.2,4426.1,1.461]
[1755324061279,0.4141,4426.2,4426.1,1.461]
[1755324061672,0.1665,4426.2,4426.1,1.461]
[1755324061876,0.4141,4426.2,4426.1,1.461]
[1755324062279,1.92704266,4426.2,4426.1,0.6733]
[1755324062473,1.65794266,4426.2,4425.8,3.2078]
[1755324062674,0.47,4426.0,4425.9,0.8496]
[1755324062979,0.47,4426.0,4425.9,1.461]
[1755324063874,0.47,4426.0,4425.9,4.505444]
[1755324064075,0.4485,4426.0,4425.9,4.505444]
[1755324064278,0.4141,4426.0,4425.9,4.505444]
[1755324065280,0.1665,4426.0,4425.9,4.505444]
[1755324065673,1.87114266,4426.5,4426.4,1.461]
[1755324065873,2.01770956,4426.5,4426.4,1.461]
[1755324067077,2.05210956,4426.5,4426.4,1.461]
[1755324068582,0.5950669,4426.5,4426.4,1.461]
[1755324068981,0.1665,4426.5,4426.4,1.461]
[1755324069181,4.66484266,4426.8,4426.4,1.461]
[1755324069387,0.4488,4426.5,4426.4,1.461]
[1755324069684,0.4705,4426.5,4426.4,1.461]
[1755324069881,1.92754266,4426.5,4426.4,1.461]
[1755324070383,1.92754266,4426.5,4426.4,4.255844]
[1755324070785,1.92754266,4426.5,4426.4,4.505444]
[1755324071987,1.92754266,4426.5,4426.4,3.717744]
[1755324073183,1.92754266,4426.5,4426.4,4.079544]
[1755324073376,2.07415565,4426.5,4426.4,4.079544]
[1755324073877,1.92754266,4426.5,4426.4,4.255844]
[1755324074083,1.92754266,4426.5,4426.4,4.505444]
[1755324074484,2.07417403,4426.5,4426.4,4.505444]
[1755324074685,2.07417507,4426.5,4426.4,4.505444]
[1755324074884,1.92754266,4426.5,4426.4,4.505444]
[1755324075080,0.4705,4426.5,4426.4,4.505444]
[1755324075282,0.4488,4426.5,4426.4,4.505444]
[1755324075682,0.4141,4426.5,4426.4,4.505444]
[1755324075881,0.56075203,4426.5,4426.4,4.505444]
[1755324076787,2.05249469,4426.5,4426.4,4.505444]
[1755324077091,2.07419469,4426.5,4426.4,4.505444]
[1755324077488,1.77019469,4426.5,4426.4,4.505444]
[1755324077987,2.05249469,4426.5,4426.4,4.505444]
[1755324078182,2.07443735,4426.5,4426.4,4.505444]
[1755324078786,2.07443735,4426.5,4426.4,3.894044]
[1755324079484,2.07443735,4426.5,4426.4,3.044444]
[1755324082691,2.07443735,4426.5,4426.4,3.296944]
[1755324083192,2.07443735,4426.5,4426.4,4.252844]
[1755324083492,1.77043735,4426.5,4426.4,4.511144]
[1755324083685,2.03243735,4426.5,4426.4,4.511144]
[1755324083880,2.06629635,4426.5,4426.4,4.511144]
[1755324084088,2.08729635,4426.5,4426.4,4.511144]
[1755324086393,2.08729635,4426.5,4426.4,3.467944]
[1755324086596,2.08729635,4426.5,4426.4,3.720444]
[1755324086795,0.58065369,4426.5,4426.4,4.148044]
[1755324087090,0.63525369,4426.5,4426.4,4.252844]
[1755324087795,0.63525369,4426.5,4426.4,3.720444]
[1755324087995,2.09229635,4426.5,4426.4,4.252844]
[1755324088293,2.72501289,4426.5,4426.4,4.252844]
[1755324088897,2.72501289,4426.5,4426.4,3.889744]
[1755324089500,2.92824322,4426.5,4426.4,4.252844]
[1755324090294,2.92824322,4426.5,4426.4,4.511144]
[1755324093202,2.90724322,4426.5,4426.4,4.511144]
[1755324093405,2.61164322,4426.5,4426.4,4.511144]
[1755324093601,0.98310056,4426.5,4426.4,4.511144]
[1755324095103,0.78007208,4426.5,4426.4,4.511144]
[1755324095314,0.98379515,4426.5,4426.4,4.511144]
[1755324095506,3.2078,4426.8,4426.4,4.511144]
[1755324095704,3.2078,4426.8,4426.6,0.5928]
[1755324095903,3.2078,4426.8,4426.4,4.50148666]
[1755324095904,3.2078,4426.8,4426.7,1.4667]
[1755324096908,2.8093,4426.8,4426.7,1.4667]
[1755324097407,2.9808,4426.8,4426.7,1.4667]
[1755324098107,0.1715,4426.8,4426.7,1.4667]
[1755324098303,1.99914266,4427.1,4427.0,0.3294]
[1755324098509,2.26114266,4427.1,4427.0,1.4667]
[1755324099209,2.89383823,4427.1,4427.0,1.4667]
[1755324099507,1.00778206,4427.1,4427.0,1.4667]
[1755324099708,3.30643823,4427.1,4427.0,1.4667]
[1755324099911,3.30643705,4427.1,4427.0,1.4667]
[1755324100210,2.67374266,4427.1,4427.0,4.511144]
[1755324101208,1.45704266,4427.1,4427.0,4.511144]
[1755324102511,1.62854266,4427.1,4427.0,4.511144]
[1755324102706,1.89054266,4427.1,4427.0,4.511144]
[1755324102908,2.26114266,4427.1,4427.0,4.511144]
[1755324103206,0.1715,4427.2,4427.1,1.4667]
[1755324103405,1.049,4427.2,4427.1,1.4667]
[1755324103605,1.385,4427.2,4427.1,1.4667]
[1755324107604,1.5301776,4427.2,4427.1,1.4667]
[1755324108305,0.3166776,4427.2,4427.1,1.4667]
[1755324108610,0.7994,4428.0,4427.9,0.5791]
[1755324108810,2.03788919,4428.0,4427.9,1.4595]
[1755324109507,2.03788446,4428.0,4427.9,1.4595]
[1755324110101,2.37698446,4428.0,4427.9,1.4595]
[1755324110313,2.37698446,4428.0,4427.9,4.503944]
[1755324111708,2.00481232,4428.0,4427.9,4.503944]
[1755324112305,2.20815611,4428.0,4427.9,4.503944]
[1755324112498,2.17351232,4428.0,4427.9,4.503944]
[1755324112703,2.37683595,4428.0,4427.9,3.044444]
[1755324112905,3.83387861,4428.0,4427.9,2.501944]
[1755324113108,2.37683595,4428.0,4427.9,2.501944]
[1755324113910,0.3456,4427.2,4427.1,0.3628]
[1755324114103,5.15559458,4427.2,4427.1,0.9419]
[1755324114298,5.57559458,4427.2,4427.1,1.4595]
[1755324119714,5.40689458,4427.2,4427.1,1.4595]
[1755324119916,5.15559458,4427.2,4427.1,1.4595]
[1755324120310,3.3765,4427.9,4427.1,1.4595]
[1755324120611,0.77763991,4427.8,4427.7,1.4595]
[1755324121214,0.14509472,4427.8,4427.7,1.4595]
[1755324121510,0.80459472,4427.8,4427.7,1.4595]
[1755324121709,0.49069472,4427.8,4427.7,1.4595]
[1755324121915,1.94773738,4427.8,4427.7,1.4595]
[1755324122309,1.60213738,4427.8,4427.7,1.4595]
[1755324122914,0.14509472,4427.8,4427.7,1.4595]
[1755324123611,0.72299472,4427.8,4427.7,1.4595]
[1755324123920,1.28819472,4427.8,4427.7,1.0967]
[1755324124113,1.28819472,4427.8,4427.4,0.3628]
[1755324124114,0.1704,4427.6,4427.4,0.3628]
[1755324124316,0.1704,4427.6,4427.2,3.044444]
[1755324124317,0.8918,4427.6,4427.5,0.9419]
[1755324124517,1.1431,4427.6,4427.5,0.9419]
[1755324124718,1.1431,4427.6,4427.5,1.4595]
[1755324125327,1.1431,4427.6,4427.5,4.503944]
[1755324125521,2.60014266,4427.6,4427.5,4.503944]
[1755324125718,2.80499364,4427.6,4427.5,4.503944]
[1755324126021,3.43789391,4427.6,4427.5,3.557344]
[1755324126217,3.43789391,4427.6,4427.5,3.044444]
[1755324127419,3.43789391,4427.6,4427.5,2.899244]
[1755324128015,0.3456,4426.7,4426.6,0.5142]
[1755324128217,5.52624266,4426.7,4426.6,0.877]
[1755324128725,5.52624266,4426.7,4426.6,1.0381]
[1755324129623,5.52624266,4426.7,4426.6,0.418]
[1755324130326,5.52624266,4426.7,4426.6,0.6748]
[1755324131525,5.52624266,4426.7,4426.6,1.4595]
[1755324132025,5.01044266,4426.7,4426.6,1.4595]
[1755324132223,5.26944266,4426.7,4426.6,1.4595]
[1755324132421,5.40999915,4426.7,4426.6,1.4595]
[1755324133323,4.80539915,4426.7,4426.6,1.4595]
[1755324134025,1.59759915,4426.7,4426.6,1.4595]
[1755324135421,1.77279915,4426.7,4426.6,1.4595]
[1755324135626,2.45899915,4426.7,4426.6,1.4595]
[1755324135923,2.20219915,4426.7,4426.6,1.4595]
[1755324136824,2.20088439,4426.7,4426.6,1.4595]
[1755324137324,5.40868439,4426.7,4426.6,1.4595]
[1755324138026,0.259,4426.6,4425.8,0.8804]
[1755324138220,2.06164266,4426.1,4426.0,1.4595]
[1755324138523,2.06164266,4426.1,4426.0,1.4705]
[1755324138524,2.45766249,4426.1,4426.0,1.4705]
[1755324139123,2.45776249,4426.1,4426.0,0.2568]
[1755324139629,0.3312,4425.8,4425.3,0.3641]
[1755324139827,2.03464266,4425.5,4425.4,1.465]
[1755324141223,2.29154266,4425.5,4424.7,3.472]
[1755324141429,2.03464266,4424.9,4424.8,1.465]
[1755324142524,2.03464266,4424.9,4424.8,4.509444]
[1755324144528,0.5776,4424.9,4424.8,4.509444]
[1755324145021,4.66484266,4425.2,4424.8,4.145344]
[1755324145229,5.24244266,4425.2,4425.1,0.577]
[1755324145423,5.24244266,4425.2,4425.1,1.465]
[1755324146127,3.7854,4425.2,4425.1,1.465]
[1755324152625,4.0423,4425.2,4425.1,1.465]
[1755324154534,3.7854,4425.2,4425.1,1.465]
[1755324155429,0.8345,4425.1,4425.0,0.577]
[1755324155630,0.8345,4425.1,4425.0,1.465]
[1755324156335,0.8345,4425.1,4425.0,1.2008]
[1755324156928,0.8345,4425.1,4425.0,3.304144]
[1755324157331,0.97355854,4425.1,4425.0,3.932444]
[1755324157531,0.8345,4425.1,4425.0,4.340744]
[1755324157731,0.8345,4425.1,4425.0,4.509444]
[1755324158030,0.9735579,4425.1,4425.0,4.509444]
[1755324158236,0.71667479,4425.1,4425.0,4.509444]
[1755324159431,0.13907479,4425.1,4425.0,4.509444]
[1755324159631,0.8345,4425.8,4425.7,0.2597]
[1755324159833,3.27439989,4425.8,4425.7,0.2597]
[1755324160636,3.27439989,4425.8,4425.7,3.044444]
[1755324162028,3.27439989,4425.8,4425.7,4.509444]
[1755324162440,3.01760154,4425.8,4425.7,4.509444]
[1755324164737,3.27450154,4425.8,4425.7,4.509444]
[1755324165240,3.27465843,4425.8,4425.7,4.509444]
[1755324165937,3.27465843,4425.8,4425.7,3.044444]
[1755324166736,3.01775843,4425.8,4425.7,4.509444]
[1755324167143,0.98311577,4425.8,4425.7,4.509444]
[1755324167337,0.13908583,4425.8,4425.7,4.509444]
[1755324167839,3.2078,4425.9,4425.7,4.509444]
[1755324168435,3.2078,4425.9,4425.8,1.5094]
[1755324168641,3.41935777,4425.9,4425.8,1.5094]
[1755324169136,4.05454565,4425.9,4425.8,1.5094]
[1755324169338,3.41935777,4425.9,4425.8,1.5094]
[1755324170741,22.17804266,4426.4,4425.8,1.5094]
[1755324171041,0.8466236,4426.3,4426.2,1.5094]
[1755324171343,1.0153236,4426.3,4426.2,1.5094]
[1755324171735,0.8466236,4426.3,4426.2,1.5094]
[1755324174042,0.21155141,4426.3,4426.2,1.5094]
[1755324174242,1.45704266,4426.4,4426.2,1.5094]
[1755324174543,1.45704266,4426.4,4426.3,1.5094]
[1755324174740,2.30313014,4426.4,4426.3,1.5094]
[1755324174943,0.84608748,4426.4,4426.3,1.5094]
[1755324175140,3.2078,4426.5,4426.3,1.5094]
[1755324175339,3.2078,4426.5,4426.4,4.553844]
[1755324175544,3.4191854,4426.5,4426.4,4.553844]
[1755324175945,3.41919618,4426.5,4426.4,4.553844]
[1755324176246,3.2078,4426.5,4426.4,4.553844]
[1755324177955,1.78894266,4427.0,4426.9,0.9916]
[1755324178155,3.26032383,4427.0,4426.9,1.5094]
[1755324178848,3.51332383,4427.0,4426.9,0.8808]
[1755324179048,0.4014,4426.9,4426.5,0.2652]
[1755324179254,2.66754266,4426.6,4426.5,1.3325]
[1755324179751,2.66754266,4426.6,4426.5,1.5094]
[1755324179955,2.80866223,4426.6,4426.5,1.5094]
[1755324180153,6.01646223,4426.6,4426.4,3.044444]
[1755324180359,5.87534266,4426.6,4426.5,3.044444]
[1755324180554,6.8618875,4426.6,4426.5,3.044444]
[1755324180760,6.22773936,4426.6,4426.5,3.309644]
[1755324181059,6.86188494,4426.6,4426.5,3.309644]
[1755324181746,6.86187709,4426.6,4426.5,3.044444]
[1755324182458,6.60887709,4426.6,4426.5,4.301244]
[1755324182755,6.60887709,4426.6,4426.5,4.553844]
[1755324183057,6.86187709,4426.6,4426.5,4.553844]
[1755324183653,6.86187709,4426.6,4426.5,3.044444]
[1755324184157,6.86187709,4426.6,4426.5,3.309644]
[1755324184660,6.86187709,4426.6,4426.5,4.553844]
[1755324186159,4.52623443,4426.6,4426.5,4.553844]
[1755324187656,0.98653443,4426.6,4426.5,4.553844]
[1755324187956,0.14112208,4426.6,4426.5,4.553844]
[1755324190352,0.35486806,4426.6,4426.5,4.553844]
[1755324190757,0.14112208,4426.6,4426.5,4.553844]
[1755324191961,4.41222776,4427.7,4426.5,4.553844]
[1755324192258,2.11166351,4427.6,4427.5,1.5094]
[1755324192656,1.85036351,4427.6,4427.5,1.5094]
[1755324193056,0.14122982,4427.6,4427.5,1.5094]
[1755324195263,0.14122982,4427.6,4427.5,4.553844]
[1755324195651,1.73824266,4428.5,4428.1,0.6156]
[1755324195852,6.00046878,4428.2,4428.1,1.5094]
[1755324196064,6.25346878,4428.2,4428.1,1.5094]
[1755324197266,6.25340842,4428.2,4428.1,1.5094]
[1755324197562,6.00040842,4428.2,4428.1,1.5094]
[1755324197755,1.78894266,4428.2,4428.1,1.5094]
[1755324198158,1.45704266,4428.2,4428.1,1.5094]
[1755324198559,0.2794,4428.4,4428.1,1.5094]
[1755324198860,2.03774266,4428.4,4428.3,0.6092]
[1755324199061,3.40549529,4428.4,4428.3,1.5064]
[1755324199265,3.0136821,4428.4,4428.3,1.5064]
[1755324199565,3.64760238,4428.4,4428.3,1.5064]
[1755324200662,3.64760238,4428.4,4427.5,0.8972]
[1755324200663,0.7625,4428.3,4427.5,0.8972]
[1755324200960,1.79834266,4427.9,4427.8,1.5064]
[1755324201267,1.45704266,4427.9,4427.8,1.5064]
[1755324201565,4.66484266,4428.2,4427.8,0.6092]
[1755324201760,0.2794,4428.1,4428.0,1.265]
[1755324201958,0.2794,4428.1,4428.0,1.5064]
[1755324202158,4.66484266,4428.2,4428.0,0.6092]
[1755324202359,5.52634266,4428.2,4428.1,1.5064]
[1755324202762,4.66484266,4428.2,4428.1,1.5064]
[1755324203165,3.2078,4428.2,4428.1,1.5064]
[1755324203961,5.76574266,4428.2,4428.1,1.5064]
[1755324204162,5.89888586,4428.2,4428.1,1.5064]
[1755324204568,5.89888586,4428.2,4428.1,0.8739]
[1755324204767,6.14118586,4428.2,4428.1,1.5064]
[1755324205563,5.89888586,4428.2,4428.1,1.5064]
[1755324207569,6.14118586,4428.2,4428.1,1.5064]
[1755324208564,6.14118586,4428.2,4428.1,0.2647]
[1755324209168,6.14118586,4428.2,4428.1,1.0681]
[1755324209370,6.14118586,4428.2,4428.1,1.3295]
[1755324209567,6.14118586,4428.2,4428.1,1.5064]
[1755324209867,0.7625,4428.1,4427.5,0.8972]
[1755324210169,1.45704266,4427.8,4427.5,0.6092]
[1755324210366,2.15384266,4427.8,4427.7,0.6092]
[1755324210571,1.91304266,4427.8,4427.7,1.5064]
[1755324210760,1.63364266,4427.8,4427.7,1.5064]
[1755324211866,1.63364266,4427.8,4427.7,4.550844]
[1755324212072,0.6207,4427.8,4427.7,4.550844]
[1755324212669,1.73644266,4428.0,4427.8,0.5061]
[1755324212871,2.55794266,4428.0,4427.9,1.5064]
[1755324213273,2.69107552,4428.0,4427.9,1.5064]
[1755324214171,2.17087552,4428.0,4427.9,1.5064]
[1755324214371,1.93147552,4428.0,4427.9,1.5064]
[1755324214673,2.69107552,4428.0,4427.9,1.5064]
[1755324215374,2.69107552,4428.0,4427.9,4.550844]
[1755324215672,2.69114229,4428.0,4427.9,4.550844]
[1755324216174,2.55794266,4428.0,4427.9,4.550844]
[1755324216372,2.6911855,4428.0,4427.9,4.550844]
[1755324216880,0.99474284,4428.0,4427.9,4.550844]
[1755324217172,0.75394284,4428.0,4427.9,4.550844]
[1755324218271,0.13324284,4428.0,4427.9,9.21568666]
[1755324218467,0.2794,4428.8,4427.9,8.31848666]
[1755324218767,1.84375199,4428.7,4428.6,1.5064]
[1755324218972,2.08315199,4428.7,4428.6,1.5064]
[1755324220874,2.32545199,4428.7,4428.6,0.4356]
[1755324221074,1.1009,4428.0,4427.9,0.697]
[1755324221265,2.90413224,4428.0,4427.9,1.5064]
[1755324221569,3.5411341,4428.0,4427.9,1.5064]
[1755324222473,3.5411341,4428.0,4427.9,4.550844]
[1755324222782,6.9912341,4428.0,4427.9,4.159744]
[1755324223078,6.9912341,4428.0,4427.9,3.309144]
[1755324223780,6.9912341,4428.0,4427.9,3.480044]
[1755324223977,6.9912341,4428.0,4427.9,4.373944]
[1755324224188,6.9912341,4428.0,4427.9,4.550844]
[1755324226481,6.9912341,4428.0,4427.9,3.309144]
[1755324226681,6.9912341,4428.0,4427.9,4.373944]
[1755324226879,6.9912341,4428.0,4427.9,4.550844]
[1755324227075,8.44827676,4428.0,4427.9,3.044444]
[1755324227275,0.4831,4427.9,4426.4,0.8972]
[1755324227475,1.79834266,4426.5,4426.4,1.5064]
[1755324227684,2.17248454,4426.5,4426.4,1.5064]
[1755324227883,0.71544188,4426.5,4426.4,1.5064]
[1755324228071,0.36023477,4426.5,4426.4,1.5064]
[1755324228275,0.13334188,4426.5,4426.4,1.5064]
[1755324228681,0.13334188,4426.5,4426.4,0.6092]
[1755324229377,5.26394266,4427.1,4427.0,1.1128]
[1755324229578,6.50569016,4427.1,4427.0,1.4877]
[1755324229777,6.50569016,4427.1,4427.0,0.2644]
[1755324229979,0.5042,4426.8,4426.4,0.2644]
[1755324230181,0.3403,4426.5,4426.4,0.8553]
[1755324230485,1.45704266,4426.6,4426.4,4.532144]
[1755324230681,1.79654266,4426.9,4426.8,1.4877]
[1755324230878,2.15648572,4426.9,4426.8,1.4877]
[1755324231485,0.69824306,4426.9,4426.8,1.4877]
[1755324231684,0.35994306,4426.9,4426.8,1.4877]
[1755324231978,0.95904306,4426.9,4426.8,1.4877]
[1755324232184,0.96024306,4426.9,4426.8,1.4877]
[1755324234488,0.96224306,4426.9,4426.8,1.4877]
[1755324234683,0.96024306,4426.9,4426.8,1.4877]
[1755324234883,0.69824306,4426.9,4426.8,1.4877]
[1755324235078,0.13344714,4426.9,4426.8,1.4877]
[1755324235280,0.13344714,4426.9,4426.8,4.6955]
[1755324237081,0.2608,4427.4,4426.8,4.6955]
[1755324237286,0.35952585,4427.3,4427.2,1.1128]
[1755324237482,0.35952585,4427.3,4427.2,1.4877]
[1755324238186,0.52412585,4427.3,4427.2,1.4877]
[1755324238382,0.95982585,4427.3,4427.2,1.4877]
[1755324240383,0.95982585,4427.3,4427.2,4.532144]
[1755324240590,0.95862585,4427.3,4427.2,4.532144]
[1755324240788,0.69782585,4427.3,4427.2,4.532144]
[1755324241793,0.13328756,4427.3,4427.2,4.532144]
[1755324242994,0.73358756,4427.3,4427.2,4.532144]
[1755324243591,0.13328756,4427.3,4427.2,4.532144]
[1755324244186,0.47158756,4427.3,4427.2,4.532144]
[1755324244386,0.73358756,4427.3,4427.2,4.532144]
[1755324245491,0.73358756,4427.3,4427.2,4.111444]
[1755324245700,0.97778756,4427.3,4427.2,4.111444]
[1755324245989,0.97778756,4427.3,4427.2,4.532144]
[1755324246693,0.73558756,4427.3,4427.2,3.044444]
[1755324246892,1.2079308,4427.3,4427.2,3.044444]
[1755324247498,1.8441774,4427.3,4427.2,3.044444]
[1755324251300,4.8441774,4427.3,4427.2,2.06116037]
[1755324251497,0.1737,4426.5,4426.4,0.1799781]
[1755324251700,3.11116691,4426.5,4426.4,0.1799781]
[1755324251900,2.47447346,4426.5,4426.4,0.1799781]
[1755324252208,2.47465858,4426.5,4426.4,0.1799781]
[1755324252503,3.11134262,4426.5,4426.4,0.1799781]
[1755324252804,0.2608,4426.4,4425.9,0.5226]
[1755324253099,2.02664266,4426.0,4425.9,1.2233]
[1755324253298,2.39025858,4426.0,4425.9,1.2233]
[1755324253600,2.15993022,4426.0,4425.9,1.4877]
[1755324254595,2.15993022,4426.0,4425.9,4.532144]
[1755324257103,2.39026118,4426.0,4425.9,4.532144]
[1755324257307,2.15993022,4426.0,4425.9,4.532144]
[1755324257606,2.39023284,4426.0,4425.9,4.532144]
[1755324258108,2.15993022,4426.0,4425.9,4.532144]
[1755324260606,2.16100513,4426.0,4425.9,4.532144]
[1755324261711,0.70396247,4426.0,4425.9,4.532144]
[1755324261912,0.30806247,4426.0,4425.9,4.532144]
[1755324263202,0.56296247,4426.0,4425.9,4.532144]
[1755324263613,0.30806247,4426.0,4425.9,4.532144]
[1755324264213,0.56386247,4426.0,4425.9,4.532144]
[1755324264401,0.69846247,4426.0,4425.9,4.532144]
[1755324265004,0.69986247,4426.0,4425.9,4.532144]
[1755324266808,0.13436247,4426.0,4425.9,4.532144]
[1755324267112,0.70348121,4426.0,4425.9,4.487944]
[1755324269113,0.3102898,4426.0,4425.9,4.487944]
[1755324269615,0.7034898,4426.0,4425.9,4.487944]
[1755324271016,2.16053246,4426.0,4425.9,4.487944]
[1755324273315,2.39285559,4426.0,4425.9,4.487944]
[1755324274514,2.39285559,4426.0,4425.9,3.880044]
[1755324274815,2.39285559,4426.0,4425.9,4.487944]
[1755324280220,3.03175247,4426.0,4425.9,4.487944]
[1755324280808,3.03285472,4426.0,4425.9,4.487944]
[1755324281621,1.31861206,4426.0,4425.9,4.487944]
[1755324281820,1.00661206,4426.0,4425.9,4.487944]
[1755324286322,0.8586463,4426.0,4425.9,4.487944]
[1755324286522,0.99341427,4426.0,4425.9,4.487944]
[1755324287420,0.13476797,4426.0,4425.9,4.487944]
[1755324287617,3.2078,4426.6,4426.5,0.5975]
[1755324287817,0.63951813,4426.6,4426.5,1.4501]
[1755324290227,1.88681813,4426.6,4426.5,3.289144]
[1755324290418,0.63951813,4426.6,4426.5,4.508144]
[1755324290620,1.24381813,4426.6,4426.5,4.508144]
[1755324291022,0.99301813,4426.6,4426.5,4.508144]
[1755324291828,0.63951813,4426.6,4426.5,4.508144]
[1755324292023,0.6043,4426.9,4426.5,3.630144]
[1755324292324,2.65517505,4426.8,4426.7,0.8392]
[1755324292629,3.25947505,4426.8,4426.7,1.4725]
[1755324295227,3.25947505,4426.8,4426.7,4.516944]
[1755324297030,0.63883239,4426.8,4426.7,4.516944]
[1755324298229,0.63883239,4426.8,4426.7,5.97398666]
[1755324298525,3.2078,4427.2,4427.1,1.4725]
[1755324298731,3.84610501,4427.2,4427.1,1.4725]
[1755324299531,4.19282933,4427.2,4427.1,1.4725]
[1755324299929,4.79712933,4427.2,4427.1,1.4725]
[1755324300231,5.35642933,4427.2,4427.1,0.2535]
[1755324300431,5.44012933,4427.2,4427.1,0.2535]
[1755324301126,4.83582933,4427.2,4426.4,0.8868]
[1755324301337,2.62064266,4426.5,4426.4,1.4725]
[1755324301629,2.96726651,4426.5,4426.4,0.6669]
[1755324301831,3.05096651,4426.5,4426.4,0.2535]
[1755324302336,3.05090867,4426.5,4426.4,0.2535]
[1755324302635,3.05090867,4426.5,4426.4,3.297944]
[1755324302832,2.83459431,4426.5,4426.4,3.297944]
[1755324303436,3.04480171,4426.5,4426.4,3.297944]
[1755324304135,3.68257756,4426.5,4426.4,3.297944]
[1755324306734,3.59887756,4426.5,4426.4,3.044444]
[1755324306940,3.59887756,4426.5,4426.4,3.883644]
[1755324307141,3.59887756,4426.5,4426.4,4.516944]
[1755324307638,2.96110171,4426.5,4426.4,4.516944]
[1755324307839,3.59896791,4426.5,4426.4,4.516944]
[1755324308041,0.13026802,4426.5,4426.4,4.516944]
[1755324311741,0.13026802,4426.5,4426.4,5.97398666]
[1755324311944,0.2508,4427.2,4426.4,5.08718666]
[1755324312144,0.97860581,4427.1,4427.0,1.4725]
[1755324312846,0.13028248,4427.1,4427.0,2.92954266]
[1755324313142,0.13028248,4427.1,4427.0,1.4725]
[1755324314345,1.45704266,4427.7,4427.0,1.4725]
[1755324314645,1.89109555,4427.6,4427.5,0.5857]